bitfinex-derivatives/quotes_SOLF0:USTF0_20250606
["timestamp","ask_amount","ask_price","bid_price","bid_amount"]
[1749181550477,5.95640221,146.62,146.61,6.8174]
[1749181550673,0.05127973,146.62,146.61,6.8174]
[1749181553882,34.74,146.66,146.63,6.8164]
[1749181554185,5.85393952,146.65,146.63,11.69795923]
[1749181554385,34.74,146.66,146.63,4.88155923]
[1749181554582,5.85374561,146.65,146.63,11.69785923]
[1749181554782,34.74,146.66,146.63,11.69785923]
[1749181554982,5.85259462,146.65,146.63,11.74610909]
[1749181555284,34.773841,146.66,146.64,6.816]
[1749181555484,5.85257672,146.65,146.64,6.816]
[1749181555879,34.773841,146.66,146.64,6.816]
[1749181557982,6.3438628,146.7,146.65,4.88155923]
[1749181558183,34.74,146.69,146.65,4.88155923]
[1749181558386,34.74,146.69,146.68,4.88155923]
[1749181558586,442.71118373,146.72,146.68,11.69575923]
[1749181558786,449.06472866,146.72,146.68,4.88155923]
[1749181558988,449.06472866,146.72,146.69,0.04866359]
[1749181559186,6.35354493,146.72,146.7,4.88155923]
[1749181559386,5.84105951,146.71,146.7,4.88155923]
[1749181560086,36.9348,146.76,146.7,4.88155923]
[1749181560289,6.8131,146.71,146.69,0.04587905]
[1749181560488,34.74,146.72,146.69,0.04587905]
[1749181560688,5.84648823,146.71,146.69,0.04587905]
[1749181560888,6.8131,146.71,146.69,0.04587905]
[1749181561183,34.74,146.74,146.69,0.04587905]
[1749181561389,5.84188044,146.73,146.69,0.04587905]
[1749181561688,6.8128,146.71,146.69,0.04587905]
[1749181562384,6.8133,146.7,146.69,0.04587905]
[1749181562584,41.5533,146.7,146.69,0.04587905]
[1749181563088,40.58473349,146.7,146.69,0.04587905]
[1749181563290,34.74,146.7,146.69,0.04587905]
[1749181563494,40.58507544,146.7,146.69,0.04587905]
[1749181563684,47.39837544,146.7,146.69,0.04587905]
[1749181565289,34.74,146.7,146.69,0.04587905]
[1749181569681,41.5533,146.7,146.69,0.04587905]
[1749181571693,34.74,146.7,146.69,0.04587905]
[1749181583405,34.74,146.7,146.69,9.98048921]
[1749181584604,34.74,146.7,146.69,6.85957905]
[1749181584804,34.74,146.7,146.69,3.16678921]
[1749181585504,34.74,146.7,146.69,0.04587905]
[1749181588403,34.74,146.7,146.69,3.16678921]
[1749181589414,34.74,146.7,146.69,9.98048921]
[1749181589610,41.5121,146.73,146.69,3.16678921]
[1749181589815,41.5121,146.73,146.7,3.12091016]
[1749181590206,34.7,146.73,146.71,3.12091016]
[1749181590611,34.7,146.73,146.7,9.93371016]
[1749181590814,41.512,146.73,146.7,9.93371016]
[1749181591320,41.512,146.73,146.69,6.85947905]
[1749181591519,6.8124,146.72,146.7,3.12091016]
[1749181591717,34.7,146.73,146.7,3.12091016]
[1749181592322,41.5122,146.73,146.7,9.93411016]
[1749181592819,41.5122,146.73,146.7,3.12091016]
[1749181593722,41.5122,146.73,146.7,9.93401016]
[1749181594021,34.7,146.73,146.7,9.93401016]
[1749181594219,34.7,146.73,146.72,3.12091016]
[1749181594415,40.53679099,146.73,146.72,3.12091016]
[1749181594618,40.53679099,146.73,146.72,9.93321016]
[1749181595622,40.53679099,146.73,146.7,6.813]
[1749181595819,34.7,146.73,146.71,3.12091016]
[1749181596023,34.7,146.73,146.7,3.12091016]
[1749181596324,34.7,146.73,146.69,0.04587905]
[1749181596619,6.8124,146.72,146.7,3.12091016]
[1749181597022,34.7,146.73,146.7,3.12091016]
[1749181597222,34.7,146.73,146.69,0.04587905]
[1749181598523,5.81811916,146.72,146.69,0.04587905]
[1749181598725,41.5119,146.73,146.7,6.8132]
[1749181598914,5.82163258,146.72,146.7,6.8132]
[1749181599120,41.5119,146.73,146.7,6.8132]
[1749181599317,5.82163258,146.72,146.7,6.8132]
[1749181599518,41.5119,146.73,146.7,6.8132]
[1749181599713,5.82668793,146.72,146.71,6.8128]
[1749181600020,34.7,146.76,146.69,0.04587905]
[1749181600021,4.56100043,146.74,146.69,0.04587905]
[1749181600225,5.82879957,146.73,146.69,0.04587905]
[1749181600425,5.82879957,146.72,146.7,6.813]
[1749181600621,6.8116,146.74,146.7,6.813]
[1749181600822,13.16309632,146.73,146.7,6.813]
[1749181601121,8.59182297,146.72,146.7,6.813]
[1749181601324,6.8116,146.74,146.71,6.8128]
[1749181601518,13.16799856,146.73,146.71,6.8128]
[1749181601726,5.83323125,146.72,146.71,6.8128]
[1749181602425,13.16781433,146.72,146.69,0.04587905]
[1749181602620,13.16781433,146.71,146.69,0.04587905]
[1749181602826,13.16822693,146.7,146.69,0.04587905]
[1749181603332,10.40428018,146.7,146.69,0.04587905]
[1749181603526,5.83323125,146.7,146.69,0.04587905]
[1749181603718,13.16716363,146.7,146.69,0.04587905]
[1749181604429,13.16825847,146.7,146.69,0.04587905]
[1749181604626,8.59819203,146.7,146.69,0.04587905]
[1749181604825,13.16812368,146.7,146.69,0.04587905]
[1749181605128,8.59819203,146.7,146.69,0.04587905]
[1749181605426,13.15188718,146.7,146.69,0.04587905]
[1749181605927,13.15136745,146.7,146.69,0.04587905]
[1749181606128,8.59828538,146.7,146.69,0.04587905]
[1749181606428,13.15134791,146.7,146.69,0.04587905]
[1749181606726,13.15136722,146.7,146.69,0.04587905]
[1749181606928,8.59838331,146.7,146.69,0.04587905]
[1749181607615,13.15209785,146.7,146.69,0.04587905]
[1749181607818,13.15217766,146.7,146.69,0.04587905]
[1749181608232,13.15207984,146.7,146.69,0.04587905]
[1749181608430,8.59836981,146.7,146.69,0.04587905]
[1749181608725,13.1520703,146.7,146.69,0.04587905]
[1749181608918,8.59836981,146.7,146.69,0.04587905]
[1749181609118,5.83323125,146.7,146.69,0.04587905]
[1749181611032,5.83323125,146.7,146.69,6.85957905]
[1749181612034,5.83323125,146.7,146.69,11.73526348]
[1749181613235,34.7,146.72,146.7,6.8132]
[1749181613435,5.80533493,146.71,146.7,6.8132]
[1749181613933,5.80533493,146.71,146.69,11.73516348]
[1749181614133,5.80533493,146.7,146.69,11.73516348]
[1749181614634,34.7,146.72,146.71,6.8128]
[1749181614829,47.83227772,146.72,146.71,6.8128]
[1749181615034,47.83227466,146.72,146.71,6.8128]
[1749181615229,13.13227466,146.72,146.71,6.8128]
[1749181615437,8.5785594,146.72,146.71,6.8128]
[1749181615633,13.14320734,146.72,146.71,6.8128]
[1749181615831,5.81727383,146.72,146.71,6.8128]
[1749181616034,8.57855787,146.72,146.71,6.8128]
[1749181616235,13.14320552,146.72,146.71,6.8128]
[1749181616431,8.57855787,146.72,146.71,6.8128]
[1749181616634,13.14308107,146.72,146.71,6.8128]
[1749181616936,13.14294745,146.72,146.71,6.8128]
[1749181617336,10.38166125,146.72,146.71,9.93263993]
[1749181617537,13.14287479,146.72,146.71,6.8128]
[1749181617737,8.57849699,146.72,146.69,0.04587905]
[1749181618037,5.81727383,146.71,146.69,3.16571898]
[1749181618234,5.82768011,146.7,146.69,3.16571898]
[1749181618841,5.82768011,146.7,146.69,0.04587905]
[1749181619029,13.15718703,146.7,146.69,0.04587905]
[1749181619234,10.39220888,146.7,146.69,0.04587905]
[1749181619537,17.20550965,146.7,146.69,0.04587905]
[1749181619735,12.64098011,146.7,146.69,3.16571898]
[1749181620039,19.96960196,146.7,146.69,3.16571898]
[1749181620237,10.39143255,146.7,146.69,3.16571898]
[1749181620538,13.15637985,146.7,146.69,3.16571898]
[1749181620735,13.15648679,146.7,146.69,3.16571898]
[1749181620939,16.27680721,146.7,146.61,34.66]
[1749181621135,9.49681858,146.68,146.64,3.11983993]
[1749181621342,10.39126432,146.67,146.63,4.87978343]
[1749181621530,5.82768011,146.66,146.64,6.8159]
[1749181621729,5.82768011,146.65,146.63,4.87978343]
[1749181621935,0.04432579,146.65,146.63,4.92972024]
[1749181622441,0.04432579,146.65,146.64,6.8158]
[1749181623637,41.03697865,146.71,146.67,6.8142]
[1749181623835,10.40941342,146.7,146.67,11.69398343]
[1749181624040,5.84596087,146.69,146.67,11.69398343]
[1749181624341,5.81722536,146.68,146.67,11.69398343]
[1749181624643,41.4729,146.71,146.67,11.69398343]
[1749181624845,12.63024873,146.7,146.67,11.69398343]
[1749181625044,5.81694873,146.69,146.67,11.69398343]
[1749181625245,34.66,146.71,146.67,11.69398343]
[1749181625433,10.36847781,146.7,146.69,6.8137]
[1749181626139,5.83490518,146.7,146.69,6.8137]
[1749181626837,5.83490518,146.7,146.68,6.814]
[1749181627039,34.66,146.71,146.68,6.814]
[1749181627242,5.83048439,146.7,146.68,6.814]
[1749181627443,34.66,146.71,146.68,6.814]
[1749181627644,5.83078637,146.7,146.68,6.814]
[1749181627839,34.66,146.71,146.68,6.814]
[1749181628040,5.83063214,146.7,146.68,6.814]
[1749181628240,34.66,146.71,146.68,6.814]
[1749181628442,5.83063214,146.7,146.68,6.814]
[1749181628749,41.4728,146.71,146.68,6.814]
[1749181629040,41.4728,146.71,146.67,11.69428343]
[1749181629041,5.83075113,146.7,146.67,11.69428343]
[1749181629245,34.66,146.71,146.67,4.87978343]
[1749181629445,13.1398301,146.7,146.67,4.87978343]
[1749181629743,5.83079624,146.69,146.68,6.8142]
[1749181633144,5.83079624,146.69,146.67,11.69428343]
[1749181633344,34.66,146.71,146.67,4.87978343]
[1749181633545,5.84792772,146.7,146.68,6.8142]
[1749181633845,34.66,146.71,146.68,6.8142]
[1749181634044,5.84780871,146.7,146.68,6.8142]
[1749181634245,5.84780871,146.69,146.67,6.8144]
[1749181634550,34.66,146.71,146.66,0.05137328]
[1749181634747,10.40776106,146.7,146.66,0.05137328]
[1749181634945,5.85650231,146.69,146.68,4.87978343]
[1749181635145,5.85631487,146.69,146.68,4.87978343]
[1749181636050,34.66,146.71,146.68,4.87978343]
[1749181636051,34.66,146.71,146.69,6.8135]
[1749181636248,5.85619753,146.7,146.69,11.68965633]
[1749181636546,5.85619753,146.7,146.69,11.6896575]
[1749181637552,4.54457049,146.73,146.71,6.8125]
[1749181637753,10.40438312,146.72,146.71,6.85969922]
[1749181638053,10.40437331,146.72,146.71,6.85969922]
[1749181638248,5.85981263,146.72,146.71,6.85969922]
[1749181638751,5.85981263,146.72,146.71,11.73585672]
[1749181641748,10.40586166,146.72,146.71,0.04719922]
[1749181642146,15.28201916,146.72,146.61,392.46]
[1749181642343,12.22896784,146.71,146.64,4.8761575]
[1749181642550,45.04799278,146.7,146.66,4.8761575]
[1749181642751,45.04799278,146.7,146.67,6.8143]
[1749181642752,5.85981263,146.69,146.67,6.8143]
[1749181642956,41.4534,146.7,146.67,6.8143]
[1749181643156,5.82860973,146.69,146.67,6.85864039]
[1749181643355,41.49839353,146.7,146.67,6.85864039]
[1749181643546,12.64903525,146.69,146.67,0.04434039]
[1749181643747,6.8138,146.69,146.67,0.04434039]
[1749181644255,5.83564512,146.68,146.67,0.04434039]
[1749181646958,5.83564512,146.68,146.67,6.85904039]
[1749181648559,5.83564512,146.68,146.67,0.04434039]
[1749181649460,5.83564512,146.68,146.67,6.85904039]
[1749181650355,34.68499353,146.7,146.68,6.814]
[1749181651261,5.85128645,146.69,146.68,6.814]
[1749181651561,34.68499353,146.7,146.68,6.814]
[1749181651755,34.68499353,146.7,146.68,4.8761575]
[1749181653161,34.68499353,146.7,146.69,6.8137]
[1749181653358,40.49816313,146.7,146.69,6.8137]
[1749181656264,5.85816313,146.7,146.69,6.8137]
[1749181656469,0.04499353,146.7,146.69,6.8137]
[1749181657354,0.04499353,146.7,146.69,11.6898575]
[1749181659070,9.353e-05,146.7,146.69,11.6898575]
[1749181659365,6.8105,146.76,146.72,6.8124]
[1749181659662,8.63554497,146.75,146.72,4.8761575]
[1749181659855,5.87506205,146.74,146.72,4.8761575]
[1749181660060,34.64,146.76,146.74,6.8112]
[1749181660262,5.8736922,146.75,146.74,6.863273]
[1749181660767,8.63529091,146.75,146.74,6.863273]
[1749181661065,5.8736922,146.75,146.74,6.863273]
[1749181661865,6.36765431,146.81,146.74,4.9282305]
[1749181662069,4.53949705,146.8,146.78,4.8761575]
[1749181662269,6.36765431,146.81,146.78,4.92744526]
[1749181662270,13.17595431,146.81,146.78,4.92744526]
[1749181662570,4.53949564,146.8,146.78,0.05128776]
[1749181662763,34.64,146.79,146.78,0.05128776]
[1749181664064,41.4491,146.79,146.78,0.05128776]
[1749181664260,45.98873367,146.79,146.78,0.05128776]
[1749181664466,45.98873367,146.79,146.74,4.8761575]
[1749181664670,6.8097,146.78,146.74,11.6874575]
[1749181664972,34.64,146.79,146.74,4.8761575]
[1749181665672,0.04815785,146.78,146.75,0.04412066]
[1749181666068,6.85785785,146.78,146.75,0.04412066]
[1749181666971,11.4385643,146.78,146.75,0.04412066]
[1749181667468,6.8101,146.77,146.75,0.04412066]
[1749181667664,4.62949531,146.78,146.75,0.04412066]
[1749181667870,0.04815785,146.78,146.75,0.04412066]
[1749181668170,0.04815785,146.78,146.75,6.85502066]
[1749181670280,0.04815785,146.78,146.75,0.04412066]
[1749181671781,6.85785785,146.78,146.75,0.04412066]
[1749181672075,4.62674443,146.78,146.75,0.04412066]
[1749181672378,2.3045,146.77,146.75,0.04412066]
[1749181673171,6.8105,146.76,146.75,0.04412066]
[1749181673770,12.60053174,146.76,146.75,0.04412066]
[1749181673967,12.60044854,146.76,146.75,0.04412066]
[1749181674570,5.78994854,146.76,146.75,0.04412066]
[1749181676277,12.60044854,146.76,146.75,0.04412066]
[1749181677381,5.78994854,146.76,146.75,0.04412066]
[1749181678872,12.60832984,146.76,146.75,0.04412066]
[1749181680185,5.79782984,146.76,146.75,0.04412066]
[1749181681777,12.60832984,146.76,146.75,0.04412066]
[1749181681981,5.79782984,146.76,146.75,0.04412066]
[1749181684277,12.60832984,146.76,146.75,0.04412066]
[1749181684480,10.67398734,146.76,146.7,4.8761575]
[1749181684674,41.40536429,146.75,146.66,176.61385821]
[1749181684878,6.812,146.73,146.69,6.8135]
[1749181685074,2.1328,146.74,146.68,4.8761575]
[1749181685285,6.8131,146.71,146.67,6.8146]
[1749181685583,0.04388602,146.7,146.68,0.04906054]
[1749181686181,0.04388602,146.7,146.69,4.8761575]
[1749181686482,0.04388602,146.7,146.69,11.6898575]
[1749181687086,0.04388602,146.7,146.69,6.8137]
[1749181688686,0.04388602,146.7,146.69,11.6898575]
[1749181690088,0.04388602,146.7,146.69,6.8137]
[1749181690286,0.04388602,146.7,146.69,11.6898575]
[1749181690683,0.04388602,146.7,146.68,11.73911804]
[1749181690887,0.04388602,146.7,146.68,4.92521804]
[1749181691699,0.04388602,146.7,146.69,6.8138]
[1749181695807,0.04388602,146.7,146.69,11.6899575]
[1749181700408,34.6,146.73,146.72,6.8124]
[1749181700602,34.6,146.73,146.72,11.6885575]
[1749181701203,41.4106,146.76,146.73,6.8117]
[1749181701403,5.78531552,146.75,146.73,6.86091628]
[1749181701699,5.78531552,146.75,146.73,0.04921628]
[1749181701700,5.78531552,146.74,146.73,0.04921628]
[1749181702308,12.59671552,146.74,146.73,0.04921628]
[1749181703208,5.78531552,146.74,146.73,0.04921628]
[1749181704513,12.59671552,146.74,146.73,0.04921628]
[1749181704807,17.13506482,146.74,146.73,0.04921628]
[1749181705007,12.59671552,146.74,146.73,0.04921628]
[1749181705311,17.14630839,146.74,146.73,0.04921628]
[1749181705709,17.15193969,146.74,146.73,0.04921628]
[1749181706611,12.59671552,146.74,146.73,0.04921628]
[1749181706811,17.15193835,146.74,146.73,0.04921628]
[1749181707016,6.8129,146.71,146.65,4.5724]
[1749181707208,34.6,146.72,146.68,4.8761575]
[1749181707814,6.8132,146.71,146.68,4.8761575]
[1749181708015,6.85614044,146.71,146.68,11.74109278]
[1749181708918,5.78400047,146.7,146.68,11.74109278]
[1749181709217,0.04294044,146.71,146.68,11.74109278]
[1749181709416,5.73876689,146.7,146.68,11.74109278]
[1749181709619,0.04294044,146.71,146.68,6.86493528]
[1749181709820,0.04294044,146.71,146.68,11.74109278]
[1749181710123,0.04294044,146.71,146.69,6.8137]
[1749181713521,0.04294044,146.71,146.68,11.74099278]
[1749181714420,0.04294044,146.71,146.69,6.8137]
[1749181715525,0.04294044,146.71,146.68,11.74079278]
[1749181716023,0.04294044,146.71,146.68,4.92689278]
[1749181716323,0.04294044,146.71,146.68,0.05073528]
[1749181716525,0.04294044,146.71,146.68,4.92689278]
[1749181717726,0.04294044,146.71,146.69,6.8137]
[1749181719726,6.85584044,146.71,146.68,11.74099278]
[1749181720226,5.77355486,146.7,146.68,11.74099278]
[1749181720421,0.04294044,146.71,146.68,11.74099278]
[1749181721125,5.77393266,146.7,146.69,6.8136]
[1749181721325,0.04294044,146.71,146.69,6.8136]
[1749181721719,5.78131885,146.7,146.69,6.8136]
[1749181722026,0.04294044,146.71,146.69,6.8136]
[1749181723226,0.04294044,146.71,146.68,11.74099278]
[1749181723427,0.04294044,146.71,146.68,4.92689278]
[1749181723924,10.33767556,146.7,146.68,0.05073528]
[1749181724117,5.79617051,146.69,146.68,0.05073528]
[1749181725220,10.34038377,146.69,146.68,0.05073528]
[1749181725428,5.79617051,146.69,146.68,6.86493528]
[1749181725727,0.04294044,146.71,146.68,6.86493528]
[1749181725927,5.7296393,146.7,146.68,6.86493528]
[1749181726127,0.04294044,146.71,146.69,4.8761575]
[1749181726328,0.04294044,146.71,146.68,0.05073528]
[1749181726632,5.75957606,146.7,146.68,0.05073528]
[1749181726825,6.85584044,146.71,146.68,0.05073528]
[1749181727118,5.75957227,146.7,146.68,0.05073528]
[1749181727323,6.85584044,146.71,146.68,0.05073528]
[1749181727618,5.77426572,146.7,146.68,0.05073528]
[1749181727818,5.77446861,146.69,146.68,0.05073528]
[1749181729833,10.31346769,146.69,146.64,4.8761575]
[1749181730036,44.93346874,146.68,146.64,4.8761575]
[1749181730232,5.77446861,146.67,146.64,4.8761575]
[1749181730431,39.4961575,146.68,146.6,2.1596]
[1749181730630,39.4961575,146.68,146.6,7.0357575]
[1749181730834,0.04380293,146.65,146.63,0.04327984]
[1749181732328,0.04380293,146.65,146.63,6.85957984]
[1749181733029,0.04380293,146.65,146.64,6.8161]
[1749181733225,0.04380293,146.65,146.64,11.6922575]
[1749181740426,34.62,146.68,146.67,6.8147]
[1749181740638,34.62,146.71,146.67,4.8761575]
[1749181740840,2.0985,146.73,146.67,4.8761575]
[1749181741144,17.05773646,146.72,146.67,4.8761575]
[1749181741337,40.36204874,146.71,146.67,4.8761575]
[1749181741537,0.04349143,146.7,146.68,0.04441547]
[1749181742133,0.04349143,146.7,146.69,6.8135]
[1749181742333,0.04349143,146.7,146.69,11.6896575]
[1749181743637,2.2717,146.75,146.72,6.8122]
[1749181743844,45.94968714,146.74,146.7,4.8761575]
[1749181744032,34.62,146.74,146.7,4.8761575]
[1749181744334,34.62,146.74,146.71,6.8125]
[1749181744540,5.77393247,146.73,146.71,6.8125]
[1749181744737,0.05046193,146.73,146.71,0.0498754]
[1749181745742,6.8124,146.72,146.71,0.0498754]
[1749181746341,12.56518845,146.72,146.71,0.0498754]
[1749181746541,17.10024666,146.72,146.71,0.0498754]
[1749181747243,10.28784666,146.72,146.71,0.0498754]
[1749181747437,10.30426293,146.72,146.71,0.0498754]
[1749181747638,5.75278845,146.72,146.71,0.0498754]
[1749181748839,12.56518845,146.72,146.71,0.0498754]
[1749181749144,5.75278845,146.72,146.71,0.0498754]
[1749181750941,10.2975424,146.72,146.71,0.0498754]
[1749181751643,10.29754222,146.72,146.71,0.0498754]
[1749181751940,10.29788423,146.72,146.71,0.0498754]
[1749181752245,5.75278845,146.72,146.71,0.0498754]
[1749181753947,40.37278845,146.72,146.71,0.0498754]
[1749181754349,44.91786932,146.72,146.71,0.0498754]
[1749181754542,40.37278845,146.72,146.71,0.0498754]
[1749181754842,44.91788526,146.72,146.71,0.0498754]
[1749181755036,40.37278845,146.72,146.71,0.0498754]
[1749181756251,44.90943829,146.72,146.71,0.0498754]
[1749181756952,44.90920447,146.72,146.71,0.0498754]
[1749181757754,40.37278845,146.72,146.71,0.0498754]
[1749181758054,44.90920397,146.72,146.71,0.0498754]
[1749181759454,44.90932896,146.72,146.71,0.0498754]
[1749181759955,44.90964874,146.72,146.71,0.0498754]
[1749181760253,40.37278845,146.72,146.71,0.0498754]
[1749181760449,44.90964889,146.72,146.71,0.0498754]
[1749181761250,44.90538964,146.72,146.71,0.0498754]
[1749181761455,40.37278845,146.72,146.71,6.8626754]
[1749181762449,0.05046193,146.73,146.72,6.8124]
[1749181762653,0.05046193,146.73,146.72,11.6885575]
[1749181768957,34.6,146.75,146.74,6.8115]
[1749181769161,41.4097,146.78,146.74,4.8761575]
[1749181769360,10.30257279,146.77,146.74,4.8761575]
[1749181769557,5.74725703,146.76,146.74,4.8761575]
[1749181769756,41.4097,146.78,146.74,4.8761575]
[1749181770060,10.30396075,146.77,146.75,6.85998706]
[1749181770256,5.74864499,146.76,146.75,6.85998706]
[1749181770458,5.74864499,146.76,146.75,0.04918706]
[1749181770657,41.4097,146.78,146.75,0.04918706]
[1749181770961,5.74754353,146.77,146.75,0.04918706]
[1749181771163,34.6,146.78,146.75,0.04918706]
[1749181771462,12.57092482,146.77,146.75,0.04918706]
[1749181771660,5.76567089,146.76,146.75,0.04918706]
[1749181771960,6.8102,146.77,146.75,0.04918706]
[1749181772160,5.73297664,146.76,146.75,0.04918706]
[1749181772469,41.4097,146.78,146.75,0.04918706]
[1749181772763,5.73264845,146.77,146.75,0.04918706]
[1749181772957,41.4097,146.78,146.75,0.04918706]
[1749181773362,5.73277085,146.77,146.75,0.04918706]
[1749181773664,41.4097,146.78,146.75,0.04918706]
[1749181773862,5.73288099,146.77,146.75,0.04918706]
[1749181774063,41.4097,146.78,146.75,0.04918706]
[1749181774268,5.73615401,146.77,146.75,0.04918706]
[1749181774563,41.4097,146.78,146.75,0.04918706]
[1749181774762,5.73617174,146.77,146.75,0.04918706]
[1749181774964,34.6,146.78,146.75,0.04918706]
[1749181775166,5.73657947,146.77,146.75,0.04918706]
[1749181775362,34.6,146.78,146.75,0.04918706]
[1749181775563,5.736805,146.77,146.75,0.04918706]
[1749181775763,34.6,146.78,146.75,0.04918706]
[1749181775964,5.73686887,146.77,146.75,0.04918706]
[1749181776159,34.6,146.78,146.77,6.8112]
[1749181776360,44.92270152,146.78,146.77,6.8112]
[1749181776762,44.92270152,146.78,146.75,0.04918706]
[1749181777056,5.73716694,146.77,146.75,0.04918706]
[1749181777260,34.6,146.78,146.75,0.04918706]
[1749181777568,5.7480391,146.77,146.75,0.04918706]
[1749181777763,6.81,146.77,146.75,0.04918706]
[1749181778166,5.75141935,146.76,146.75,0.04918706]
[1749181778563,10.33792941,146.76,146.75,0.04918706]
[1749181778860,17.14842941,146.76,146.75,0.04918706]
[1749181779168,17.14645908,146.76,146.75,0.04918706]
[1749181779365,17.14829893,146.76,146.75,0.04918706]
[1749181779567,6.8125,146.72,146.67,34.6]
[1749181779861,5.75440904,146.71,146.67,4.8761575]
[1749181780061,34.6,146.71,146.67,4.8761575]
[1749181780466,0.04846841,146.7,146.68,0.05079314]
[1749181780765,12.57029491,146.69,146.68,0.05079314]
[1749181780972,12.57029491,146.69,146.62,6.8169]
[1749181780973,5.75629491,146.69,146.62,6.8169]
[1749181781161,5.77061173,146.68,146.63,4.8761575]
[1749181781362,4.58354524,146.69,146.63,4.8761575]
[1749181781565,5.76927611,146.68,146.63,4.8761575]
[1749181781765,6.8155,146.66,146.63,4.8761575]
[1749181781964,6.86092491,146.66,146.63,4.92566941]
[1749181782367,6.8156,146.65,146.63,4.92566941]
[1749181783769,6.86072491,146.66,146.63,4.92566941]
[1749181783969,6.86072491,146.66,146.63,0.04951191]
[1749181784172,0.04542491,146.66,146.63,4.92566941]
[1749181784368,0.04542491,146.66,146.63,0.04951191]
[1749181784675,5.77243077,146.65,146.63,0.04951191]
[1749181784967,0.04542491,146.66,146.63,0.04951191]
[1749181785169,5.77257197,146.65,146.63,0.04951191]
[1749181785370,6.8161,146.64,146.63,0.04951191]
[1749181785762,5.76949982,146.64,146.58,4.8761575]
[1749181786062,5.76949982,146.64,146.56,11.6955575]
[1749181786063,45.24614626,146.63,146.56,11.6955575]
[1749181786266,39.4761575,146.63,146.56,4.8761575]
[1749181786671,0.05225757,146.61,146.58,0.05086489]
[1749181787370,0.05225757,146.61,146.58,4.92702239]
[1749181787771,0.05225757,146.61,146.6,6.818]
[1749181788366,0.05225757,146.61,146.6,11.6941575]
[1749181788570,34.6,146.65,146.6,4.8761575]
[1749181788770,34.6,146.65,146.62,4.8761575]
[1749181789569,0.04751853,146.65,146.64,11.6922575]
[1749181791273,0.04751853,146.65,146.64,6.8161]
[1749181791569,0.04751853,146.65,146.63,4.8761575]
[1749181792067,0.04751853,146.65,146.63,11.6926575]
[1749181794068,0.04751853,146.65,146.63,4.8761575]
[1749181795775,0.04751853,146.65,146.62,0.0452594]
[1749181796275,0.04751853,146.65,146.62,11.7381169]
[1749181796666,0.04751853,146.65,146.62,4.9214169]
[1749181797384,0.04751853,146.65,146.62,11.7383169]
[1749181797679,0.04751853,146.65,146.62,0.0452594]
[1749181798473,4.92367603,146.65,146.62,0.0452594]
[1749181798677,6.8161,146.64,146.62,0.0452594]
[1749181798875,34.62,146.63,146.62,0.0452594]
[1749181799575,41.4366,146.63,146.62,0.0452594]
[1749181803981,6.818,146.6,146.54,4.3487]
[1749181804176,6.818,146.6,146.56,6.8196]
[1749181804380,2.2068,146.62,146.56,6.8196]
[1749181804574,2.2068,146.62,146.54,4.3487]
[1749181804575,6.8186,146.59,146.54,13.8654575]
[1749181804779,6.8186,146.59,146.54,4.8761575]
[1749181804780,41.4386,146.59,146.54,4.8761575]
[1749181804982,0.046108,146.58,146.55,0.05101482]
[1749181805183,0.046108,146.58,146.56,6.8195]
[1749181805775,0.046108,146.58,146.57,6.8195]
[1749181806191,0.046108,146.58,146.56,6.8197]
[1749181807288,0.046108,146.58,146.55,6.87111482]
[1749181807491,0.046108,146.58,146.55,0.05101482]
[1749181808489,2.366708,146.58,146.55,0.05101482]
[1749181809191,9.186108,146.58,146.55,0.05101482]
[1749181810693,2.366708,146.58,146.55,0.05101482]
[1749181811889,9.186008,146.58,146.55,0.05101482]
[1749181812286,2.366708,146.58,146.55,0.05101482]
[1749181812786,9.4403655,146.58,146.55,0.05101482]
[1749181813692,9.4403655,146.58,146.51,4.8761575]
[1749181813889,9.3942575,146.58,146.51,4.8761575]
[1749181814790,0.04889675,146.56,146.53,0.0507432]
[1749181814991,34.64,146.55,146.53,0.0507432]
[1749181815187,34.64,146.55,146.53,6.8717432]
[1749181815386,34.64,146.55,146.53,0.0507432]
[1749181815588,34.64,146.55,146.54,4.8761575]
[1749181816490,34.64,146.55,146.54,11.6970575]
[1749181818790,34.64,146.55,146.54,6.8209]
[1749181821799,34.64,146.55,146.53,11.7482007]
[1749181821997,34.64,146.55,146.53,4.9269007]
[1749181823501,34.64,146.55,146.53,11.7481007]
[1749181825400,34.64,146.55,146.54,6.8209]
[1749181825897,34.64,146.55,146.53,4.9269007]
[1749181825898,0.04889675,146.56,146.53,4.9269007]
[1749181826095,0.04889675,146.56,146.55,4.8761575]
[1749181826702,0.04889675,146.56,146.55,11.6965575]
[1749181827798,34.62,146.58,146.57,6.8195]